[Event "Deloitte NK 2021 Vrouwen"]
[Site "Hoogeveen, Netherlands"]
[Date "2021.10.21"]
[Round "5.1"]
[White "Kazarian, Anna-Maja"]
[Black "Van Foreest, Machteld"]
[Result "1/2-1/2"]
[TimeControl "90min/40moves + 30min + 30sec/move"]
[WhiteElo "2125"]
[BlackElo "2132"]

1. c4 {[%clk 01:30:57]} {[%emt 00:00:02]} e5 {[%clk 01:30:10]} {[%emt
00:00:51]} 2. g3 {[%clk 01:31:13]} {[%emt 00:00:14]} Nf6 {[%clk 01:28:28]}
{[%emt 00:02:12]} 3. Bg2 {[%clk 01:31:35]} {[%emt 00:00:08]} d5 {[%clk
01:28:11]} {[%emt 00:00:47]} 4. cxd5 {[%clk 01:31:59]} {[%emt 00:00:06]} Nxd5
{[%clk 01:28:35]} {[%emt 00:00:06]} 5. Nc3 {[%clk 01:32:20]} {[%emt 00:00:09]}
Nb6 {[%clk 01:28:54]} {[%emt 00:00:11]} 6. Nf3 {[%clk 01:32:25]} {[%emt
00:00:25]} Nc6 {[%clk 01:29:19]} {[%emt 00:00:05]} 7. O-O {[%clk 01:32:24]}
{[%emt 00:00:30]} Be7 {[%clk 01:29:35]} {[%emt 00:00:15]} 8. a3 {[%clk
01:31:38]} {[%emt 00:01:15]} O-O {[%clk 01:26:21]} {[%emt 00:03:44]} 9. b4
{[%clk 01:29:45]} {[%emt 00:02:23]} a6 {[%clk 01:26:06]} {[%emt 00:00:45]} 10.
d3 {[%clk 01:29:17]} {[%emt 00:00:58]} Be6 {[%clk 01:26:05]} {[%emt 00:00:30]}
11. Be3 {[%clk 01:24:40]} {[%emt 00:05:06]} Nd5 {[%clk 01:21:55]} {[%emt
00:04:41]} 12. Nxd5 {[%clk 01:17:58]} {[%emt 00:07:11]} Bxd5 {[%clk 01:21:47]}
{[%emt 00:00:38]} 13. Qc2 {[%clk 01:15:15]} {[%emt 00:03:14]} Qd7 {[%clk
01:19:54]} {[%emt 00:02:22]} 14. Bc5 {[%clk 01:09:42]} {[%emt 00:06:02]} Bxc5
{[%clk 01:13:00]} {[%emt 00:07:24]} 15. Qxc5 {[%clk 01:09:59]} {[%emt
00:00:13]} Rfe8 {[%clk 01:02:22]} {[%emt 00:11:06]} 16. Rfe1 {[%clk 00:50:24]}
{[%emt 00:20:06]} Bxf3 {[%clk 00:53:39]} {[%emt 00:09:14]} 17. Bxf3 {[%clk
00:50:06]} {[%emt 00:00:47]} Nd4 {[%clk 00:32:07]} {[%emt 00:22:02]} 18. Bxb7
{[%clk 00:22:03]} {[%emt 00:28:33]} Rab8 {[%clk 00:29:15]} {[%emt 00:03:22]} 19.
Bg2 {[%clk 00:21:01]} {[%emt 00:01:32]} Nb3 {[%clk 00:28:25]} {[%emt 00:01:20]}
20. Qc3 {[%clk 00:19:51]} {[%emt 00:01:40]} Nxa1 {[%clk 00:24:00]} {[%emt
00:04:56]} 21. Bc6 {[%clk 00:19:58]} {[%emt 00:00:23]} Qd4 {[%clk 00:14:53]}
{[%emt 00:09:36]} 22. Qxd4 {[%clk 00:20:19]} {[%emt 00:00:09]} exd4 {[%clk
00:15:22]} {[%emt 00:00:02]} 23. Bxe8 {[%clk 00:20:39]} {[%emt 00:00:10]} Nc2
{[%clk 00:15:46]} {[%emt 00:00:06]} 24. Rc1 {[%clk 00:21:03]} {[%emt 00:00:06]}
Nxa3 {[%clk 00:16:10]} {[%emt 00:00:07]} 25. Bd7 {[%clk 00:20:25]} {[%emt
00:01:07]} Rxb4 {[%clk 00:14:53]} {[%emt 00:01:47]} 26. Rxc7 {[%clk 00:20:23]}
{[%emt 00:00:33]} Kf8 {[%clk 00:14:33]} {[%emt 00:00:49]} 27. Ra7 {[%clk
00:18:36]} {[%emt 00:02:17]} Nb1 {[%clk 00:08:09]} {[%emt 00:06:55]} 28. Rxa6
{[%clk 00:15:24]} {[%emt 00:03:42]} Nc3 {[%clk 00:08:30]} {[%emt 00:00:09]} 29.
Bg4 {[%clk 00:15:08]} {[%emt 00:00:45]} g6 {[%clk 00:08:13]} {[%emt 00:00:47]}
30. h4 {[%clk 00:13:08]} {[%emt 00:02:30]} h5 {[%clk 00:06:27]} {[%emt
00:02:16]} 31. Bf3 {[%clk 00:13:29]} {[%emt 00:00:09]} Ke7 {[%clk 00:06:53]}
{[%emt 00:00:03]} 32. Rc6 {[%clk 00:05:54]} {[%emt 00:08:05]} Kd7 {[%clk
00:05:56]} {[%emt 00:01:28]} 33. Rf6 {[%clk 00:02:50]} {[%emt 00:03:34]} Ke7
{[%clk 00:06:20]} {[%emt 00:00:06]} 34. Ra6 {[%clk 00:03:10]} {[%emt 00:00:09]}
Rb1+ {[%clk 00:04:42]} {[%emt 00:02:08]} 35. Kg2 {[%clk 00:03:38]} {[%emt
00:00:03]} Rb2 {[%clk 00:04:55]} {[%emt 00:00:17]} 36. Rc6 {[%clk 00:03:44]}
{[%emt 00:00:23]} Nxe2 {[%clk 00:03:10]} {[%emt 00:02:15]} 37. Bxe2 {[%clk
00:04:09]} {[%emt 00:00:06]} Rxe2 {[%clk 00:03:36]} {[%emt 00:00:03]} 38. Rc4
{[%clk 00:04:35]} {[%emt 00:00:04]} Ra2 {[%clk 00:03:33]} {[%emt 00:00:34]} 39.
Rxd4 {[%clk 00:05:01]} {[%emt 00:00:04]} f6 {[%clk 00:01:19]} {[%emt 00:02:43]}
40. Kf3 {[%clk 00:05:02]} {[%emt 00:00:28]} Ra5 {[%clk 00:01:17]} {[%emt
00:00:32]} 41. Ke3 {[%clk 00:03:31]} {[%emt 00:02:01]} g5 {[%clk 00:00:48]}
{[%emt 00:00:58]} 42. Rc4 {[%clk 00:29:08]} {[%emt 00:04:54]} Ke6 {[%clk
00:28:11]} {[%emt 00:03:06]} 43. Rc6+ {[%clk 00:29:06]} {[%emt 00:00:33]} Kf5
{[%clk 00:26:54]} {[%emt 00:01:47]} 44. f3 {[%clk 00:17:51]} {[%emt 00:11:45]}
Rb5 {[%clk 00:14:23]} {[%emt 00:13:01]} 45. hxg5 {[%clk 00:13:42]} {[%emt
00:04:37]} Kxg5 {[%clk 00:13:42]} {[%emt 00:01:12]} 46. Rc8 {[%clk 00:13:44]}
{[%emt 00:00:28]} Re5+ {[%clk 00:10:54]} {[%emt 00:03:18]} 47. Kd2 {[%clk
00:10:29]} {[%emt 00:03:46]} Re6 {[%clk 00:08:47]} {[%emt 00:02:36]} 48. d4
{[%clk 00:09:24]} {[%emt 00:01:35]} Ra6 {[%clk 00:05:34]} {[%emt 00:03:43]} 49.
Rc2 {[%clk 00:01:12]} {[%emt 00:08:41]} f5 {[%clk 00:04:36]} {[%emt 00:01:28]}
50. Ke2 {[%clk 00:00:48]} {[%emt 00:00:55]} Ra3 {[%clk 00:04:13]} {[%emt
00:00:53]} 51. d5 {[%clk 00:00:47]} {[%emt 00:00:31]} f4 {[%clk 00:01:42]}
{[%emt 00:03:01]} 52. d6 {[%clk 00:00:53]} {[%emt 00:00:24]} Re3+ {[%clk
00:01:45]} {[%emt 00:00:27]} 53. Kf2 {[%clk 00:00:58]} {[%emt 00:00:25]} Rd3
{[%clk 00:02:13]} {[%emt 00:00:03]} 54. Rc5+ {[%clk 00:00:51]} {[%emt
00:00:37]} Kg6 {[%clk 00:02:17]} {[%emt 00:00:26]} 55. gxf4 {[%clk 00:00:49]}
{[%emt 00:00:32]} Rxd6 {[%clk 00:02:31]} {[%emt 00:00:15]} 56. Kg3 {[%clk
00:00:55]} {[%emt 00:00:24]} Rf6 {[%clk 00:02:09]} {[%emt 00:00:52]} 57. Rg5+
{[%clk 00:00:46]} {[%emt 00:00:38]} Kh6 {[%clk 00:02:37]} {[%emt 00:00:03]} 58.
Re5 {[%clk 00:01:10]} {[%emt 00:00:06]} Kg6 {[%clk 00:02:06]} {[%emt 00:01:01]}
59. Rd5 {[%clk 00:01:20]} {[%emt 00:00:20]} Rf5 {[%clk 00:01:40]} {[%emt
00:00:56]} 60. Rd8 {[%clk 00:01:06]} {[%emt 00:00:44]} Kg7 {[%clk 00:01:41]}
{[%emt 00:00:29]} 61. Rd6 {[%clk 00:01:07]} {[%emt 00:00:29]} Kh7 {[%clk
00:02:03]} {[%emt 00:00:07]} 62. Re6 {[%clk 00:00:56]} {[%emt 00:00:42]} Kg7
{[%clk 00:02:13]} {[%emt 00:00:19]} 63. Re5 {[%clk 00:01:23]} {[%emt 00:00:03]}
Kg6 {[%clk 00:02:33]} {[%emt 00:00:10]} 64. Re6+ {[%clk 00:01:28]} {[%emt
00:00:26]} 1/2-1/2